Cogmind - Beta 15 @@@ ROGUE MODE // 2025.07.12 @ 01:38:41 Player: Cracklepappy Result: Destroyed by G-47 Trooper with Particle Gun Performance ------------- Evolutions (0) 0 Regions Visited (2) 400 Robots Destroyed (43) 215 Value Destroyed (657) 657 Prototype IDs (2) 40 Alien Tech Used (0) 0 Bonus (0) 0 TOTAL SCORE: 1312 Bonus ------- None Cogmind --------- Core Integrity 0/250 Matter 190/300 Energy 119/125 System Corruption 0% Temperature Warm (136) Movement Treading (480) Ox4 Location -10/Mines Parts ------- > --- POWER (1) -------- Light Ion Engine > --- PROPULSION (2) --- Light Treads > --- UTILITY (2) ------ Disposable Heat Sink Huge Storage Unit > --- WEAPON (2) ------- Beam Rifle Beam Rifle > --- INVENTORY (25) --- Light Nuclear Core Surge Thruster Disposable Heat Sink High-capacity Matter Pod (200) Visual Processing Unit Signal Interpreter Seismic Detector Transport Network Coupler Advanced Targeting Computer Shield Generator Shield Generator Shield Generator Hacking Suite Tractor Beam Improved Trap Extractor (5/6 Heavy EX) Beam Rifle Beam Rifle Subdweller Laser High-powered Shotgun Makeshift Shrapnel Gun Mini Grenade Launcher Mini Grenade Launcher Datajack Mining Laser Peak State ------------ > --- POWER ------------ Ion Engine > --- PROPULSION ------- Light Treads Light Treads > --- UTILITY ---------- Improved Heat Sink Huge Storage Unit > --- WEAPON ----------- Beam Rifle Beam Rifle > --- INVENTORY -------- Light Ion Engine Light Treads Light Treads Disposable Heat Sink Disposable Heat Sink Large Storage Unit High-capacity Matter Pod Visual Processing Unit Seismic Detector Transport Network Coupler Shield Generator Shield Generator Shield Generator Hacking Suite Tractor Beam Beam Rifle Beam Rifle Subdweller Laser Assault Rifle Mini Grenade Launcher Mini Grenade Launcher Mini Grenade Launcher Mini Grenade Launcher Datajack Mining Laser [Rating: 15] Favorites ----------- Power Ion Engine Engine Ion Engine Propulsion Light Treads Treads Light Treads Utility Improved Heat Sink Device Improved Heat Sink Storage Huge Storage Unit Weapon Beam Rifle Energy Gun Beam Rifle Ballistic Gun Assault Rifle Launcher Mini Grenade Launcher Special Weapon Mining Laser Special Melee Weapon Datajack Build | -11 -10 -10 ------- Run | Yrd Mat Min Slots Evolved . | . . . Power . | . . . Propulsion . | . . . Utility . | . . . Weapon . | . . . Parts Attached 27 | 8 10 9 Power 5 | 1 2 2 Engine 5 | 1 2 2 Core . | . . . Reactor . | . . . Propulsion 4 | 2 . 2 Treads 4 | 2 . 2 Leg . | . . . Wheel . | . . . Hover . | . . . Flight . | . . . Utility 8 | 2 4 2 Device 4 | 1 1 2 Storage 4 | 1 3 . Processor . | . . . Hackware . | . . . Protection . | . . . Artifact . | . . . Weapon 10 | 3 4 3 Energy Gun 5 | 1 3 1 Energy Cannon . | . . . Ballistic Gun 2 | 2 . . Ballistic Cannon . | . . . Launcher 1 | . . 1 Special Weapon 1 | . 1 . Impact Weapon . | . . . Slashing Weapon . | . . . Piercing Weapon . | . . . Special Melee Weapon 1 | . . 1 Unidentified Prototypes . | . . . Parts Lost 4 | . . 4 Power 2 | . . 2 Propulsion 2 | . . 2 Utility . | . . . Weapon . | . . . Highest Loss Streak 1 | . . 1 To Critical Strikes . | . . . Average Backups 16 | 4 15 22 Power . | . 1 . Propulsion 2 | 2 2 1 Utility 8 | . 6 12 Weapon 5 | 1 4 7 Tool/Special . | . . . Unused Backups 28 | . 7 21 Power 1 | . . 1 Propulsion 5 | . 4 1 Utility 14 | . . 14 Weapon 8 | . 3 5 Tool/Special . | . . . Average Slot Usage (%) 97 | . 99 94 Engine 12 | . 13 8 Treads 27 | . 27 27 Device 14 | . 14 14 Storage 14 | . 14 14 Energy Gun 23 | . 21 27 Ballistic Gun 4 | . 6 . Peak Build Rating 15 | 7 15 15 Average Rating 12 | 5 12 13 On Entrance 7 | . 7 14 Naked Turns . | . . . Heaviest Build 92 | 13 92 91 Greatest Support 40 | 40 40 40 Greatest Overweight (x) 2 | . 2 2 Average Overweight (x) . | . . 2 Largest Inventory Capacity 25 | 8 25 25 Average Capacity 19 | 7 17 25 Most Carried 25 | 8 25 25 Average Carried 17 | 4 15 24 Final Capacity 25 | 8 25 25 Final Carried 25 | 8 25 24 Class Distribution -------------------- 100% | Mutant Dominant Class ---------------- Mutant | -10/Materials Mutant | -10/Mines Resources | -11 -10 -10 ----------- Run | Yrd Mat Min Matter Collected 945 | 323 492 130 Remotely . | . . . Salvage Created 905 | 166 557 182 Parts 70 | 17 34 19 Haulers Intercepted 1 | . 1 . Recyclers Shooed 2 | 1 . 1 Parts Field Recycled . | . . . Retrieved Matter . | . . . Parts Self-Destructed . | . . . Prevented . | . . . Kills | -11 -10 -10 ------- Run | Yrd Mat Min Combat Hostiles Destroyed 27 | . 13 14 Guns 18 | . 13 5 AOE 9 | . . 9 Classes Destroyed 9 | 3 6 . Worker 3 | 2 1 . Builder 1 | . 1 . Tunneler 6 | 5 1 . Hauler 1 | . 1 . Recycler 1 | 1 . . Operator 1 | . 1 . Watcher 3 | . 3 . Swarmer 18 | . 6 12 Grunt 9 | . 7 2 Best Kill Streak 8 | 8 5 5 Combat Bots Only 5 | . 5 5 Max Kills in Single Turn 3 | 1 2 3 Gunslinging 1 | . 1 . Exploded 3 | . . 3 Melee . | . . . Uniques/NPCs Destroyed . | . . . Combat | -11 -10 -10 -------- Run | Yrd Mat Min Hostile Shots Fired 113 | . 61 52 Missed 32 | . 18 14 Hits 81 | . 43 38 Projectile 81 | . 43 38 Critical Strikes 3 | . 2 1 Damage Taken 985 | . 456 529 Core 253 | . 106 147 Absorbed by Shields . | . . . Regen/Repaired (Parts) 109 | . 109 . Core Remaining (%) 100 | 100 . . Volleys Fired 95 | 16 57 22 Largest 2 | 2 2 2 Hottest 116 | 70 112 116 Shots Fired 181 | 32 113 36 Gun 172 | 32 112 28 Cannon . | . . . Launcher 8 | . . 8 Special 1 | . 1 . Kinetic 53 | 16 37 . Thermal 120 | 16 76 28 Explosive 8 | . . 8 Electromagnetic . | . . . Robot Hit Streak 18 | 13 16 18 Robot Miss Streak 4 | 2 3 4 Penetration Max . | . . . Secondary Targets 2 | . 1 1 Max Gunslinging Chain 1 | . 1 1 Shots Hit Robots 110 | 23 68 19 Core Hits 56 | 9 32 15 Critical Kills . | . . . Critical Parts Destroyed . | . . . Critical Strikes 10 | 3 5 2 Burn 10 | 3 5 2 Melee Attacks . | . . . Impact . | . . . Slashing . | . . . Piercing . | . . . Sneak Attacks . | . . . Combat Hostiles . | . . . Follow-up Attacks . | . . . Damage Inflicted 2258 | 290 941 1027 Guns 1538 | 290 938 310 Cannons . | . . . Explosions 717 | . . 717 Melee . | . . . Ramming 3 | . 3 . Kinetic 426 | 143 283 . Thermal 1112 | 147 655 310 Explosive 717 | . . 717 Electromagnetic . | . . . Impact . | . . . Slashing . | . . . Piercing . | . . . Highest Corruption . | . . . Average Corruption . | . . . Corruption Purged . | . . . Corruption Blocked . | . . . Overload Shots . | . . . Overflow Damage 83 | . . 83 Projectiles . | . . . Explosions 83 | . . 83 Melee . | . . . Knockbacks . | . . . Impact . | . . . Kinetic . | . . . Secondary . | . . . Self-Inflicted Damage 49 | . . 49 Shots 2 | . . 2 Rammed 1 | . 1 . Targets Rammed 1 | . 1 . Kicked . | . . . Crushed . | . . . Highest Temperature 144 | 45 138 144 Average Temperature 51 | 14 55 73 Received Heat Transfer 360 | . 183 177 Siege Activations . | . . . Martial Activations . | . . . Shielding Activations . | . . . Robots Disrupted . | . . . Combat Hostiles . | . . . Robots Corrupted . | . . . Combat Hostiles . | . . . Parts Fried . | . . . Impact Corruptions . | . . . Robots Melted . | . . . Combat Hostiles . | . . . Parts Melted 4 | . 4 . Heat Transferred 3554 | 666 2109 779 Parts Sabotaged . | . . . Parts Stolen . | . . . Parts Stripped . | . . . Power Chain Reactions . | . . . Alert | -11 -10 -10 ------- Run | Yrd Mat Min Maximum Alert Level 1 | . . 1 Low Security (%) 99 | 100 100 99 Level 1 . | . . . Level 2 . | . . . Level 3 . | . . . Level 4 . | . . . Level 5 . | . . . High Security . | . . . Max Security . | . . . Peak Influence 209 | 15 151 209 Initial 57 | . . 57 Average 33 | 2 25 55 Influence Increases 972 | 40 510 422 Destroy 0b10 Robot/C 540 | . 260 280 Destroy 0b10 Robot/NC 80 | 40 40 . Destroy Leader 118 | . 68 50 Successful Hack 65 | . 65 . Select Force Hacks 60 | . 60 . Disable Machine 15 | . 15 . Destroy Structure 64 | . 2 62 Lose Combat Pursuer 30 | . . 30 Influence Decreases 922 | 40 363 519 Entered New Map 90 | . . 90 Time Decay 802 | 40 363 399 Lost Part 30 | . . 30 Squads Dispatched 4 | . 4 . Investigation 3 | . 3 . Extermination . | . . . Reinforcement 1 | . 1 . Assault . | . . . Garrison . | . . . Intercept . | . . . Searches Triggered . | . . . Construction Impeded . | . . . Haulers Reinforced . | . . . Active Scanning Responses . | . . . Cargo Convoy Interrupts . | . . . Stealth | -11 -10 -10 --------- Run | Yrd Mat Min Distress Signals 1 | . 1 . Communications Jammed . | . . . Distress Signals . | . . . Times Spotted 37 | . 21 16 Peak Tracking Total 5 | . 5 3 Tactical Retreats 2 | . . 2 Traps | -11 -10 -10 ------- Run | Yrd Mat Min Traps Triggered 5 | . 4 1 Indirectly . | . . . Trap Hack Attempts 12 | . . 12 Triggered . | . . . Disarmed . | . . . Reprogrammed 2 | . . 2 Reused . | . . . Traps Extracted . | . . . Installed . | . . . Triggered . | . . . Most Traps Carried 5 | . . 5 Machines | -11 -10 -10 ---------- Run | Yrd Mat Min Machines Disabled 1 | . 1 . Max in Single Turn 1 | . 1 . Machines Repaired . | . . . Machines Dismantled . | . . . Machines Sabotaged . | . . . Overloaded Fab Kills . | . . . Hacking | -11 -10 -10 --------- Run | Yrd Mat Min Machines Accessed 10 | . 9 1 Terminals 6 | . 6 . Fabricators . | . . . Repair Stations 1 | . 1 . Recycling Units 2 | . 2 . Scanalyzers . | . . . Garrison Access . | . . . Total Hacks 24 | . 23 1 Successful 13 | . 12 1 Failed 11 | . 11 . Catastrophic 4 | . 4 . Database Lockouts . | . . . Manual 19 | . 19 . Terminals 18 | . 18 . Fabricators . | . . . Repair Stations 2 | . 2 . Recycling Units 3 | . 3 . Scanalyzers . | . . . Garrison Access . | . . . Terminal Hacks 4 | . 3 1 Part Schematic 1 | . 1 . Robot Schematic 1 | . 1 . Prototype ID Bank 1 | . 1 . Open Door 1 | . . 1 Fabricator Hacks . | . . . Repair Station Hacks 2 | . 2 . Scan Component 1 | . 1 . Repair 1 | . 1 . Recycling Unit Hacks . | . . . Scanalyzer . | . . . Garrison Access Hacks . | . . . Unauthorized Hacks 7 | . 7 . Terminals 5 | . 5 . Skim 5 | . 5 . Fabricators . | . . . Repair Stations . | . . . Recycling Units 2 | . 2 . Tunnel 2 | . 2 . Scanalyzers . | . . . Garrison Access . | . . . Data Cores Recovered . | . . . Used . | . . . Hacking Detections 7 | . 7 . Full Trace Events . | . . . Feedback Events . | . . . Feedback Blocked . | . . . Robot Schematics Acquired 1 | . 1 . Robots Built . | . . . Authchips . | . . . Time . | . . . Total Robot Build Rating . | . . . Part Schematics Acquired 1 | . 1 . Parts Built . | . . . Authchips . | . . . Time . | . . . Total Part Build Rating . | . . . Parts Repaired 1 | . 1 . Time 13 | . 13 . Parts Recycled . | . . . Recycled Matter . | . . . Retrieved Matter . | . . . Retrieved Components . | . . . Parts Scanalyzed . | . . . Part Schematics Acquired . | . . . Parts Damaged . | . . . Bothacking | -11 -10 -10 ------------ Run | Yrd Mat Min Used RIF Installer . | . . . Robots Hacked . | . . . Non-combat . | . . . Combat . | . . . Robot Hacks Applied . | . . . Relay Couplers Released . | . . . Fabnet Peak Effective % . | . . . Robots Rewired . | . . . Allies Hacked . | . . . Hacks Repelled . | . . . Allies | -11 -10 -10 -------- Run | Yrd Mat Min Total Allies . | . . . Largest Group . | . . . Highest-Rated Group . | . . . Highest-Rated Ally . | . . . Total Orders . | . . . Ally Attacks . | . . . Total Damage . | . . . Kills . | . . . Allies Corrupted . | . . . Allies Melted . | . . . Intel | -11 -10 -10 ------- Run | Yrd Mat Min Active Infowar (turns) 225 | 122 103 . Seismic 225 | 122 103 . Robot Analysis Total . | . . . Derelict Logs Recovered 1 | . . 1 Drone Launches . | . . . Drone Recoveries . | . . . Exploration | -11 -10 -10 ------------- Run | Yrd Mat Min Turns Passed 4125 | 231 2598 1296 Spaces Moved 1523 | 108 1070 345 Core 7 | 7 . . Treads 1516 | 101 1070 345 Legs . | . . . Wheels . | . . . Hover . | . . . Flight . | . . . Fastest Speed 50 | 50 160 320 Average Speed 235 | 152 216 320 Slowest Speed 320 | 160 320 320 Overloaded Moves . | . . . Propulsion Burnouts . | . . . Robots Hopped . | . . . Potential Cave-ins . | . . . Cave-ins Triggered . | . . . Exploration Rate (%) 56 | 6 97 66 Regions Visited 2 Branch Regions 1 Pre-discovered Areas 2 | . 2 . Known Exits Taken . | . . . Unknown Exits Taken 2 | 1 1 . Scrap Searched . | . . . Spaces Dug 9 | . . 9 Terrain Destroyed 86 | . . 86 Melee . | . . . Projectile . | . . . AOE 86 | . . 86 Terrain Rammed . | . . . Walls Destroyed . | . . . Machines Disabled . | . . . Actions | -11 -10 -10 --------- Run | Yrd Mat Min Total 1882 | 138 1242 502 Wait 133 | . 50 83 Move 1521 | 107 1069 345 Hop . | . . . Pick Up 46 | 7 28 11 Fast Attach 18 | 7 9 2 Attach 3 | . . 3 Detach 1 | . . 1 Swap 23 | 1 10 12 Drop 29 | . 18 11 Fire 95 | 16 57 22 Melee . | . . . Ram . | . . . Kick . | . . . Crush 1 | . 1 . Escape Stasis . | . . . Rewire . | . . . Trap 12 | . . 12 Miscellaneous . | . . . Route ------- -11/Scrapyard -10/Materials (discovered 6 exits: *Mat x3 / *Min x2 / [*Sub]) -10/Mines (discovered 2 exits: *Mat x2) History --------- Turn | Location | Event 5 | -11/Scrapyard | Discovered new exit (range 15) 232 | -11/Scrapyard | Entered Materials 267 | -10/Materials | Discovered new exit (range 16) 304 | -10/Materials | Build established: Mutant 535 | -10/Materials | Discovered new exit (range 15) 692 | -10/Materials | Discovered new exit (range 16) 732 | -10/Materials | Derelicts attacked the area 802 | -10/Materials | Discovered new exit (range 13) 1327 | -10/Materials | Discovered new exit (range 16) 1507 | -10/Materials | Discovered new exit (range 9) 1538 | -10/Materials | Learned 4 Recycling zone layouts 1599 | -10/Materials | Learned Storage interactive machine intel 1624 | -10/Materials | Repaired Lgt. Treads 1651 | -10/Materials | Learned location of 1 exit from Recycling 1691 | -10/Materials | Learned 2 Mines zone layouts 1736 | -10/Materials | Loaded intel: 4 trap records 1763 | -10/Materials | Learned Storage stockpile data 1802 | -10/Materials | Learned Storage emergency access door positions 2830 | -10/Materials | Entered Mines 2831 | -10/Mines | Identified exit to Materials 2833 | -10/Mines | Core integrity fell below 50% 2954 | -10/Mines | Found a hidden stash of uninstalled traps 3342 | -10/Mines | A weapon hastily lodged in a ceiling crevice suddenly fell to the ground 3577 | -10/Mines | Met a Derelict who couldn't figure out how to use a Trap Extractor 3728 | -10/Mines | Core integrity fell below 20% 4126 | -10/Mines | Destroyed by G-47 Trooper with Particle Gun Last Messages --------------- 03727_ An explosion rips through the floor. 03727_ Machine disabled. 03787_ S-10 Pest suffers critical hit (Burn). 03787_ S-10 Pest destroyed. 03800_ Acquired 18 matter. 03803_ Acquired 10 matter. 03819_ Acquired 12 matter. 03828_ Acquired Lgt. Ion Engine. 04017_ Lgt. Treads destroyed. 04017_ Destroyed Lgt. Treads. 04019_ S-10 Pest destroyed. 04022_ The unstable cave ceiling collapses. 04024_ K-01 Serf collects debris. 04049_ Acquired 2 matter. 04051_ K-01 Serf collects debris. 04054_ K-01 Serf cleans the Laser Drill. 04122_ Critical hit (Burn: +37). 04124_ Lgt. Treads destroyed. 04124_ G-47 Trooper suffers critical hit (Burn). 04126_ G-47 Trooper heat damages Aluminum Leg. Map ----- +----------------------------------------------------+ | ### #???????????????????????????????????????????? | | #???????????????????????????????????????????? | | ## #???????????????????????????????????????????? | | ######???????????????????????????????????????????? | | #????????????????????????????????????????????????? | | ?????????????????????????????????????????????????? | | ?????????????????????????????????????????????????? | | ##???????????????????????????????????????????????? | | ##???????????????# ?????????????????????????????? | | #?????????????## ?????????????????????????????? | | #?????????????# ?????????????????????????????? | | #????????????? ??????????????? ?????????????? | | ##????????????? #?????????????? #????????????? | | ##????????????? ###??????????# ##???????????? | | ### #??????????? ##????????# ##??????????? | | #???????????? ## ###### ### #???? | | #####????????????# #???# # #???? | | #????????????????# """ ####???# ## # #???? | | ##??????????????## """ ##?????# ## # ###???? | | #?????????###?## """ ##???## ### # #?????? | | #????????## ## #??## ##?# # #?????? | | #???????# *=k #??# ##?# # ###???? | | #?????# [%% [# #??# #?# # ##??? | | #????## = = # #??# #?# # #??? | | #?????## ## #??# #?# # #??? | | # #????#### ## @#### ##?# # ##??? | | ?# ## g ##??# ##???? | | ??## # ### g ##???# ##???? | | ????############# ###########????##### #???? | | ????????????????# ##??????????????????# #???? | | #???????????????## ##???????????????????## ##???? | | ##???????????????# #?????????????????????###????? | | ##????###???????# #????????????????????????????? | | #???## ##??????# #????????????????????????????? | | ##??# ##?????# #?####???????????????????????? | | ##?# ##????# ### ##??????????????????????? | | ### [ #????# #??????????????????????? | | #????# #??????????????????????? | | #????##### ##???####???????????????? | | ## ##### ##????????# ##??## ##??????????????? | | ## #??## #?????????# #?## ###????????????? | | ## #??## #?????????## ### ##???????????? | | ## ##### #?????????#### ##??????????? | | ####???????????# #??????????? | | ###### # % ##########??## ##########?? | | ?????# # = =[#???### ## #?? | | ?????## ## #### ### #?????## # #?? | | ??????# ## ### #?# #?????## # #?? | | ????###### ## #?#*##??### ## """ #?? | | ???##""## ## ###= #### #### ## """ #?? | +----------------------------------------------------+ Best States ------------- Heat Dissipation 39 Coolant Potential 50 Energy Generation 10 Energy Capacity 250 Matter Stores 300 Matter Capacity 300 Sight Range 16 Terrain Scan Density 10 Evasion (%) 40 Recoil Reduction 2 Trap Extractor Capacity 6 Item Schematics ----------------- Lgt. Treads | -10/Materials | Hacked Robot Schematics ------------------ M-13 Machinist | -10/Materials | Hacked Fabricated ------------ Nothing Repaired ---------- Lgt. Treads | 22% | -10/Materials Alien Tech Used ----------------- None Achievements -------------- None Challenges ------------ None Game ------ Seed LatentVariableAxe Manual? 0 Play Time 00:17:18 Cumulative 1045.6 hours Start 2025.07.12 @ 01:23:19 End 2025.07.12 @ 01:38:41 Sessions 1 Manual Loads 0 Difficulty Rogue Special Mode None Game No. 523 Rogue 523 Adventurer 0 Explorer 0 Win Type - Total 23 Types 10/4/3/0/1/1/2/2/0/0 Lore% 89 Gallery% 89 Achievement% 83 Wizard Run 0 Options --------- Layout 0 ASCII 0 Keyboard 0 Movement Numpad Keybinds 0 Fullscreen 2 Font 24/Smallcaps Map View 76x50 Zoom Use 0% Tactical HUD 1 Map Filters NONE Filters SHIFT_HUE(315) Steam 1 RUN: 8f730141-43d9-4241-a361-387158f8782c